Cogmind - Beta 17.1 @@@ ROGUE MODE // 2026.09.19 @ 15:00:02 Player: Err. String Expected Got Nil Result: Destroyed by G-67 Veteran with Field Laser Performance ------------- Evolutions (6) 3000 Regions Visited (22) 4400 Robots Destroyed (454) 2270 Value Destroyed (19236) 19236 Prototype IDs (26) 520 Alien Tech Used (0) 0 Bonus (8402) 8402 TOTAL SCORE: 37828 Bonus ------- High Alert Combat Kills 3515 Follower Combat Kills 2121 Entered Garrisons 600 Used RIF Installer 1000 Network Hubs Disabled 200 Built Enhanced Grunts 300 A7 Reached Mainframe 300 Met R17 at Cetus 500 Friendly Fire -134 Cogmind --------- Core Integrity 0/1150 Matter 278/300 Energy 62/100 System Corruption 47% Temperature Cool (43) Movement Core (1400) Ox27 Location -4/Factory Parts ------- > --- POWER (2) -------- (None) > --- PROPULSION (6) --- (None) > --- UTILITY (8) ------ Huge Storage Unit > --- WEAPON (3) ------- Phasing Sabre > --- INVENTORY (25) --- High-capacity Matter Pod (200) Improved Sensor Array Improved Sensor Array Experimental EM Shield Improved Force Field Relay Coupler [NC] (32) Relay Coupler [NC] (21) Remote Datajack Plasma Cutter Peak State ------------ > --- POWER ------------ Reinforced Deuterium Engine Light Antimatter Reactor > --- PROPULSION ------- Centrium Heavy Treads Centrium Heavy Treads Centrium Heavy Treads > --- UTILITY ---------- Advanced Heat Sink Huge Storage Unit IFF Parser Experimental Targeting Computer Centrium Medium Armor Plating Centrium Medium Armor Plating Graphene Brace Experimental EM Shield > --- WEAPON ----------- Advanced Variable Charge Gun Enhanced Coil Gun Advanced KE Penetrator > --- INVENTORY -------- Light Antimatter Reactor Light Antimatter Reactor Centrium Heavy Treads Centrium Heavy Treads High-capacity Matter Pod Improved Sensor Array Improved Sensor Array Improved Force Field Relay Coupler [NC] Relay Coupler [NC] High-powered Tractor Beam Advanced Drone Bay Advanced Variable Charge Gun Advanced Plasma Cannon Enhanced Coil Gun Railgun Advanced KE Penetrator Hardcell Cannon Missile Launcher Remote Datajack Plasma Cutter Phasing Sabre [Rating: 153] Favorites ----------- Power Reinforced Deuterium Engine Engine Reinforced Deuterium Engine Power Core Micro Nuclear Core Reactor Light Antimatter Reactor Propulsion Light Treads Treads Light Treads Leg Aluminum Leg Wheel Armored Wheel Utility Huge Storage Unit Device Advanced Heat Sink Storage Huge Storage Unit Processor Improved Signal Interpreter Hackware Relay Coupler [NC] Protection Centrium Medium Armor Plating Weapon Advanced KE Penetrator Energy Gun Advanced Beam Rifle Energy Cannon Heavy Ion Cannon Ballistic Gun Advanced KE Penetrator Ballistic Cannon Heavy Flak Cannon Launcher Proton Missile Launcher Special Weapon Remote Datajack Impact Weapon Great Maul Slashing Weapon Phasing Sabre Special Melee Weapon Improved Datajack Build | -11 -10 -10 -9 -9 -9 -8 -8 -8 -7 -7 -7 -7 -7 -6 -6 -6 -6 -6 -5 -5 -5 -4 ------- Run | Yrd Mat Min Mat Min Exi Min Mat Gar Fac Was Fac Gar Fac Fac Ext Cet Arc Hub Fac Gar Fac Fac Slots Evolved 12 | . . . 2 . . . 2 . 2 . . . . 2 . . . . 2 . . 2 Power 1 | . . . . . . . . . . . . . . . . . . . . . . 1 Propulsion 4 | . . . 1 . . . 1 . 1 . . . . 1 . . . . . . . . Utility 6 | . . . . . . . 1 . 1 . . . . 1 . . . . 2 . . 1 Weapon 1 | . . . 1 . . . . . . . . . . . . . . . . . . . Parts Attached 227 | 3 13 . 30 . . 1 16 8 11 6 10 15 35 9 9 12 4 10 3 4 8 20 Power 20 | . 1 . 2 . . . 1 . . . 2 1 3 1 1 1 . . . 1 1 5 Engine 11 | . 1 . 2 . . . 1 . . . 1 1 2 . 1 . . . . 1 1 . Core 2 | . . . . . . . . . . . . . 1 . . . . . . . . 1 Reactor 7 | . . . . . . . . . . . 1 . . 1 . 1 . . . . . 4 Propulsion 66 | 2 3 . 13 . . . 7 6 2 2 2 7 8 5 3 3 . . . . 2 1 Treads 56 | 2 . . 9 . . . 7 6 2 2 2 7 8 3 3 3 . . . . 2 . Leg . | . . . . . . . . . . . . . . . . . . . . . . . Wheel 10 | . 3 . 4 . . . . . . . . . . 2 . . . . . . . 1 Hover . | . . . . . . . . . . . . . . . . . . . . . . . Flight . | . . . . . . . . . . . . . . . . . . . . . . . Utility 73 | 1 3 . 4 . . . 2 1 6 2 1 4 13 1 3 3 4 7 3 3 4 8 Device 36 | 1 . . 2 . . . 1 . 3 1 1 1 5 1 2 1 4 5 1 . . 7 Storage 7 | . 3 . 1 . . . . . . . . . 2 . . . . . . . 1 . Processor 7 | . . . . . . . . . 1 . . . 2 . 1 . . 1 1 . 1 . Hackware 7 | . . . . . . . . . 2 1 . 1 . . . . . . 1 1 1 . Protection 16 | . . . 1 . . . 1 1 . . . 2 4 . . 2 . 1 . 2 1 1 Artifact . | . . . . . . . . . . . . . . . . . . . . . . . Weapon 68 | . 6 . 11 . . 1 6 1 3 2 5 3 11 2 2 5 . 3 . . 1 6 Energy Gun 10 | . . . 4 . . . 1 . . . 1 . 2 . . 1 . 1 . . . . Energy Cannon 5 | . . . 1 . . . . . . . 1 . . . . 1 . . . . 1 1 Ballistic Gun 38 | . 5 . 5 . . 1 4 . 1 2 . 3 8 1 1 2 . 2 . . . 3 Ballistic Cannon 3 | . . . . . . . . . . . 1 . . 1 . . . . . . . 1 Launcher 5 | . 1 . . . . . . . . . 1 . 1 . 1 . . . . . . 1 Special Weapon 2 | . . . . . . . . 1 1 . . . . . . . . . . . . . Impact Weapon 2 | . . . 1 . . . . . 1 . . . . . . . . . . . . . Slashing Weapon 2 | . . . . . . . . . . . 1 . . . . 1 . . . . . . Piercing Weapon . | . . . . . . . . . . . . . . . . . . . . . . . Special Melee Weapon 1 | . . . . . . . 1 . . . . . . . . . . . . . . . Unidentified Prototypes 21 | . . . 3 . . . 2 . 1 . 1 . 2 . . 4 . 4 . . 1 3 Corrupted Parts 9 | . . . . . . . . . . . . . . . . 6 . 3 . . . . System Corruption 65 | . . . . . . . . . . . . . . . . 54 . 11 . . . . Parts Lost 79 | . 1 . 6 . . . 4 . . . 2 4 13 5 6 2 . . . 3 . 33 Power 8 | . 1 . . . . . . . . . 1 . . . . . . . . 1 . 5 Propulsion 27 | . . . 2 . . . 1 . . . 1 2 6 4 4 1 . . . . . 6 Utility 21 | . . . . . . . 1 . . . . 1 4 . 1 1 . . . 1 . 12 Weapon 23 | . . . 4 . . . 2 . . . . 1 3 1 1 . . . . 1 . 10 Highest Loss Streak 15 | . 1 . 4 . . . 3 . . . 1 3 4 2 2 1 . . . 2 . 15 To Critical Strikes 1 | . . . . . . . . . . . . . . . . 1 . . . . . . Average Backups 22 | 3 18 24 24 25 24 25 24 24 23 21 21 21 20 21 21 21 20 21 19 22 22 21 Power 1 | 1 . 1 1 2 2 2 1 1 1 1 . 1 2 2 2 2 2 2 2 2 1 1 Propulsion 3 | 1 7 8 6 6 6 6 5 6 5 5 5 4 2 . . . 2 2 2 2 1 1 Utility 9 | . 7 12 10 8 7 8 7 9 8 7 8 9 9 9 11 10 8 9 7 9 10 8 Weapon 5 | 1 3 2 4 8 8 8 7 6 6 6 4 4 5 7 6 7 6 6 6 6 6 7 Tool/Special . | . . . . . . . . . . . . . . . . . . . . . . . Unused Backups 47 | . 7 . 13 . 1 . 7 2 . 1 . . 3 1 3 4 . 1 . 1 . 3 Power 4 | . . . 1 . . . 1 1 . . . . . . . 1 . . . . . . Propulsion 4 | . 2 . 2 . . . . . . . . . . . . . . . . . . . Utility 24 | . 3 . 8 . 1 . 2 1 . . . . 1 1 1 2 . 1 . . . 3 Weapon 15 | . 2 . 2 . . . 4 . . 1 . . 2 . 2 1 . . . 1 . . Tool/Special . | . . . . . . . . . . . . . . . . . . . . . . . Average Slot Usage (%) 92 | . 99 100 99 100 100 100 98 100 99 94 91 92 94 98 93 84 79 69 81 81 81 78 Engine 5 | . 14 14 11 11 11 11 9 9 7 7 3 3 6 1 3 1 . . . . 5 4 Reactor 1 | . . . . . . . . . . . 3 3 . 4 1 4 6 6 5 4 . 4 Treads 25 | . 1 . 23 33 33 33 35 36 38 32 30 30 32 35 32 23 20 20 17 17 17 13 Wheel 3 | . 26 28 9 . . . . . . . . . . 2 1 . . . . . . . Device 9 | . 14 14 10 11 11 11 14 15 10 7 7 6 6 5 3 7 12 6 11 10 10 14 Storage 7 | . 14 14 11 11 11 11 9 9 7 7 7 7 7 6 6 6 6 6 5 5 5 5 Processor 6 | . . . . . . . . . 6 7 7 7 12 13 13 4 . 2 11 11 11 7 Hackware 1 | . . . . . . . . . 4 7 7 1 . . . . . . 4 5 6 3 Protection 4 | . . . . . . . 2 2 . . . 6 2 6 8 12 13 7 5 5 4 7 Energy Gun 3 | . 2 . 8 11 11 11 2 7 7 1 5 6 . . . 2 . . . 2 . 2 Ballistic Gun 16 | . 25 28 22 22 22 22 18 17 13 15 15 15 18 15 12 11 13 16 14 10 10 8 Ballistic Cannon 1 | . . . . . . . . . . . . . . 3 5 . . . . 2 4 1 Peak Build Rating 153 | 7 14 12 21 19 19 20 31 33 39 47 51 59 51 51 53 128 128 131 135 133 125 153 Average Rating 60 | 5 11 12 17 19 19 18 27 31 34 41 47 54 46 49 50 98 127 124 129 127 122 131 On Entrance 54 | 6 7 12 12 19 19 19 20 31 33 33 46 50 41 42 49 49 128 127 128 131 118 125 Avg Prop Armor Cover (%) 4 | . . . . . . . . . . . . 4 . 1 6 11 . . . 8 . . Naked Turns . | . . . . . . . . . . . . . . . . . . . . . . . Heaviest Build 163 | 12 92 90 98 98 98 98 106 104 102 99 107 112 131 116 126 134 133 163 126 129 124 152 Greatest Support 240 | 40 40 24 60 60 60 60 80 80 100 130 130 130 132 122 123 240 240 240 240 240 240 240 Greatest Overweight (x) 38 | . 8 3 2 1 1 1 1 1 1 1 . 1 1 11 11 13 . . . . . 38 Average Overweight (x) . | . 2 3 1 1 1 1 1 1 . . . . . . 1 1 . . . . . . Largest Inventory Capacity 25 | 8 25 25 25 25 25 25 25 25 25 25 25 25 25 25 25 25 25 25 25 25 25 25 Average Capacity 24 | 8 23 25 25 25 25 25 25 25 25 25 25 25 25 25 25 25 25 25 25 25 25 25 Most Carried 25 | 8 24 25 25 25 25 25 25 25 25 25 25 25 25 25 25 25 25 25 22 25 25 25 Average Carried 23 | 3 18 24 24 25 24 25 24 24 23 23 24 24 23 24 24 24 25 24 21 24 24 23 Final Capacity 25 | 8 25 25 25 25 25 25 25 25 25 25 25 25 25 25 25 25 25 25 25 25 25 25 Final Carried 25 | 2 23 25 25 25 25 25 25 25 23 24 25 22 25 25 25 25 25 23 21 25 25 9 Class Distribution -------------------- 37% | Scavenger-Tank 16% | Scavenger-Gunner 14% | Scavenger-Skirmisher 11% | Gunner 8% | Mutant 7% | Scavenger-Mutant Dominant Class ---------------- Mutant | -10/Materials Mutant | -10/Mines Gunner | -9/Materials Gunner | -9/Mines Gunner | -9/Exiles Gunner | -8/Mines Scavenger-Gunner | -8/Materials Scavenger-Gunner | -8/Garrison Scavenger-Skirmisher | -7/Factory Scavenger-Tank | -7/Waste Scavenger-Skirmisher | -7/Factory Scavenger-Tank | -7/Garrison Scavenger-Skirmisher | -7/Factory Scavenger-Gunner | -6/Factory Scavenger-Gunner | -6/Extension Scavenger-Tank | -6/Cetus Scavenger-Mutant | -6/Archives Scavenger-Tank | -6/Hub_04(d) Scavenger-Tank | -5/Factory Scavenger-Tank | -5/Garrison Scavenger-Tank | -5/Factory Scavenger-Tank | -4/Factory Resources | -11 -10 -10 -9 -9 -9 -8 -8 -8 -7 -7 -7 -7 -7 -6 -6 -6 -6 -6 -5 -5 -5 -4 ----------- Run | Yrd Mat Min Mat Min Exi Min Mat Gar Fac Was Fac Gar Fac Fac Ext Cet Arc Hub Fac Gar Fac Fac Matter Collected 16477 | 226 838 38 956 12 . 6 924 392 113 445 1226 935 2618 1276 1220 307 165 791 187 866 153 2783 Remotely 1488 | . . . . . . . . . . . . . 235 . . . . . . 103 . 1150 Salvage Created 21868 | 115 876 107 2021 32 . . 1237 834 161 346 1523 880 3249 1606 1652 357 398 1211 . 944 153 4166 Parts 1121 | 5 47 5 135 5 . . 72 56 15 7 75 46 180 65 73 16 30 69 . 35 9 176 Haulers Intercepted 18 | . 2 . 5 . . . 2 . . . 2 . 3 . . . . 1 . . . 3 Recyclers Shooed 28 | 1 1 1 3 . . . 2 . . . 2 . 2 7 6 . . . . . 1 2 Parts Field Recycled . | . . . . . . . . . . . . . . . . . . . . . . . Retrieved Matter . | . . . . . . . . . . . . . . . . . . . . . . . Parts Self-Destructed . | . . . . . . . . . . . . . . . . . . . . . . . Prevented . | . . . . . . . . . . . . . . . . . . . . . . . Parts Restored . | . . . . . . . . . . . . . . . . . . . . . . . Kills | -11 -10 -10 -9 -9 -9 -8 -8 -8 -7 -7 -7 -7 -7 -6 -6 -6 -6 -6 -5 -5 -5 -4 ------- Run | Yrd Mat Min Mat Min Exi Min Mat Gar Fac Was Fac Gar Fac Fac Ext Cet Arc Hub Fac Gar Fac Fac Combat Hostiles Destroyed 315 | . 14 . 36 2 . . 17 19 2 1 24 16 52 19 26 4 1 12 . 17 2 51 Melee 2 | . . . . . . . 1 . . . . . . . . . . . . . . 1 Guns 252 | . 14 . 33 2 . . 12 18 2 1 19 16 45 17 10 1 1 12 . 16 2 31 Cannons 37 | . . . 3 . . . 4 1 . . . . 6 2 6 . . . . 1 . 14 AOE 20 | . . . . . . . . . . . 5 . 1 . 10 . . . . . . 4 Classes Destroyed 21 | 2 8 . 2 . . . 1 . 1 1 2 . . . 2 . . . . 1 . 1 Worker 27 | . 3 . 3 1 . . 3 . 1 . 2 . 3 3 . . . 4 . . . 4 Builder 22 | . 2 . 1 . . . . . 2 . 1 . 4 . 1 . . 5 . . 1 5 Tunneler 2 | 1 . 1 . . . . . . . . . . . . . . . . . . . . Hauler 18 | . 2 . 5 . . . 2 . . . 2 . 3 . . . . 1 . . . 3 Recycler 31 | 1 2 1 4 . . . 2 . 1 . 5 . 4 5 2 . . 1 . . . 3 Mechanic 7 | . 1 . . . . . 1 . . . 2 . 1 . 1 . . . . . . 1 Operator 13 | . 2 . . . . . 1 . . . . . . . . . 9 1 . . . . Watcher 17 | . 3 . 4 . . . 1 1 . . . . 2 1 1 1 . . . . 1 2 Swarmer 44 | . 3 . 11 2 . . . 6 . . 5 3 5 4 . . . . . 2 . 3 Cutter 2 | . . . . . . . . . . . . . . . . . . . . . . 2 Grunt 142 | . 11 . 15 . . . 10 3 . . 8 5 29 10 16 . . 3 . 8 1 23 Brawler 7 | . . . . . . . . . . . 1 . 3 1 . . . . . . . 2 Duelist 10 | . . . 1 . . . . 2 . . 2 . 2 1 1 . . . . . 1 . Protector 4 | . . . . . . . . . . . 1 . 1 . 1 . . 1 . . . . Sentry 49 | . . . 9 . . . 6 8 1 . 1 6 4 1 6 . 1 . . 1 . 5 Demolisher 1 | . . . . . . . . . . . . . . . 1 . . . . . . . Specialist 6 | . . . . . . . . . . . . . . . 1 . . . . 3 . 2 Hunter 14 | . . . . . . . 1 . . . 2 . 3 . . . . 1 . 1 . 6 Programmer 24 | . . . . . . . . . 1 . 4 2 5 2 . . . 1 . . . 9 Behemoth 2 | . . . . . . . . . . . . . . . . . . . . 2 . . Compactor 1 | . . . . . . . . . . 1 . . . . . . . . . . . . Cetus Guard 4 | . . . . . . . . . . . . . . . . 4 . . . . . . Lightning 6 | . . . . . . . . . . . . . . . . . . 6 . . . . Butcher 1 | . . . . . . . . . . . . . . . 1 . . . . . . . Best Kill Streak 12 | 2 4 1 8 2 . . 4 5 6 1 9 5 7 5 12 4 2 5 . 3 3 7 Combat Bots Only 10 | . 3 . 5 2 . . 4 5 2 1 5 5 4 5 10 3 1 3 . 3 2 6 Max Kills in Single Turn 6 | 1 1 1 1 1 . . 2 2 4 1 3 1 2 1 6 1 1 3 . 2 2 3 Gunslinging 1 | . . . . . . . 1 . . . . . 1 . . . . 1 . 1 . . Exploded 5 | . . . . . . . . . . . 3 . 1 . 5 . . . . . . 2 Melee 1 | . . . . . . . 1 . . . . . . . . . . . . . . 1 Uniques/NPCs Destroyed . | . . . . . . . . . . . . . . . . . . . . . . . Combat | -11 -10 -10 -9 -9 -9 -8 -8 -8 -7 -7 -7 -7 -7 -6 -6 -6 -6 -6 -5 -5 -5 -4 -------- Run | Yrd Mat Min Mat Min Exi Min Mat Gar Fac Was Fac Gar Fac Fac Ext Cet Arc Hub Fac Gar Fac Fac Hostile Shots Fired 2120 | . 73 . 146 3 . . 111 35 29 . 112 223 300 100 96 25 6 108 . 91 16 646 Missed 544 | . 22 . 36 2 . . 25 8 13 . 28 69 82 36 28 14 2 13 . 24 5 137 Hits 1576 | . 51 . 110 1 . . 86 27 16 . 84 154 218 64 68 11 4 95 . 67 11 509 Melee 49 | . . . 6 . . . . . . . 4 . 4 1 . . . . . . 3 31 Projectile 1527 | . 51 . 104 1 . . 86 27 16 . 80 154 214 63 68 11 4 95 . 67 8 478 AOE 2 | . . . . . . . . . . . . . . . 2 . . . . . . . Critical Strikes 95 | . 1 . 3 . . . 4 1 . . 6 6 15 1 3 1 . 15 . 1 1 37 Actively Blocked 24 | . . . . . . . . . . . . . . . . . . . . . . 24 Part Disruptions 4 | . . . . . . . . . . . . 3 . . . . . 1 . . . . Damage Taken 23459 | . 581 . 1472 6 . . 1333 438 75 . 1117 1419 3152 999 939 181 91 965 . 1570 263 8858 Core 2373 | . 117 . 253 . . . 66 79 37 . 60 71 178 77 114 . . 109 . 35 20 1157 Absorbed by Shields 1421 | . . . . . . . . . 60 . 164 216 68 . 301 121 . . . . . 491 Reduced by Siege Mode 1015 | . . . . . . . . . . . 32 55 14 . . . . 124 . 168 5 617 Ignored by Resistances 2546 | . . . . . . . . . . . . . . . . . . 2408 . . . 138 Regen/Repaired (Parts) 1245 | . . . . . . . . . . . . . 121 . . . . . 225 . 599 300 Core Remaining (%) 67 | 100 . 53 . . . 36 . 73 . . . . 50 . . . . 64 . . 94 . Volleys Fired 1141 | 3 90 5 104 2 . 1 58 41 8 18 100 51 159 68 85 10 5 65 5 48 14 201 Largest 3 | 2 2 2 3 3 . 3 3 3 3 3 3 3 3 3 3 3 3 3 1 3 3 3 Hottest 195 | 60 60 40 147 102 . 102 118 118 111 75 111 127 124 100 123 150 150 150 5 195 114 168 Shots Fired 2775 | 6 180 10 288 6 . 3 172 109 18 33 230 132 425 198 192 14 15 146 5 127 25 441 Gun 2350 | 6 179 10 270 6 . 3 143 106 15 22 208 132 371 159 104 4 15 145 . 108 13 331 Cannon 327 | . . . 18 . . . 29 3 . . 8 . 48 39 52 1 . . . 19 6 104 Launcher 31 | . 1 . . . . . . . . . 6 . 3 . 9 9 . . . . . 3 Special 67 | . . . . . . . . . 3 11 8 . 3 . 27 . . 1 5 . 6 3 Kinetic 2144 | 3 167 10 202 4 . 2 131 68 10 22 139 87 368 198 151 3 13 141 . 104 19 302 Thermal 533 | 3 12 . 86 2 . 1 41 41 5 . 77 45 51 . 5 2 2 4 . 23 . 133 Explosive 12 | . 1 . . . . . . . . . 6 . . . 3 . . . . . . 2 Electromagnetic 19 | . . . . . . . . . . . . . 3 . 6 9 . . . . . 1 Robot Hit Streak 32 | 4 7 4 12 2 . 4 19 9 18 15 17 20 21 24 16 3 5 12 7 32 14 25 Robot Miss Streak 6 | . 6 1 4 1 . . 5 3 1 1 5 5 6 4 6 1 2 6 . 2 4 5 Penetration Max 1 | . . . . . . . . . . . . 1 1 1 1 1 . 1 . 1 . 1 Secondary Targets 31 | . 2 . 4 1 . . 1 3 . 1 2 3 6 . . . 1 2 . 1 . 4 Max Gunslinging Chain 1 | . 1 . 1 1 . . 1 1 . 1 1 1 1 . . . 1 1 . 1 . 1 Shots Hit Robots 1863 | 4 117 6 166 3 . 3 118 71 14 28 138 84 269 150 149 4 21 93 5 93 16 311 Core Hits 985 | 3 50 2 79 2 . 1 48 31 8 2 68 33 131 85 117 13 12 47 . 48 13 192 Critical Kills 39 | . . . 1 . . . . . . 1 . 1 4 . 1 . 1 9 . 4 1 16 Critical Parts Destroyed 47 | . . . 1 . . . . . . . . 1 5 1 . . 1 13 . 4 . 21 Critical Strikes 105 | . . . 11 . . . . 2 . 1 3 4 9 1 1 . 2 22 . 10 1 38 Burn 16 | . . . 9 . . . . 2 . . 3 2 . . . . . . . . . . Meltdown 1 | . . . . . . . . . . . . . . . . . . . . . . 1 Destroy 88 | . . . 2 . . . . . . 1 . 2 9 1 1 . 2 22 . 10 1 37 Melee Attacks 52 | . . . 3 . . . 3 8 6 . 10 1 3 . . . 17 . . . . 1 Impact 16 | . . . 3 . . . 3 . 6 . 4 . . . . . . . . . . . Slashing 28 | . . . . . . . . . . . 6 1 3 . . . 17 . . . . 1 Piercing . | . . . . . . . . . . . . . . . . . . . . . . . Sneak Attacks 27 | . . . 1 . . . . 8 . . 4 . 2 . . . 12 . . . . . Combat Hostiles . | . . . . . . . . . . . . . . . . . . . . . . . Follow-up Attacks . | . . . . . . . . . . . . . . . . . . . . . . . Damage Inflicted 48067 | 43 1662 74 2652 45 . 45 2088 1255 681 362 3858 2113 6531 3329 4594 855 1489 2964 . 2865 295 10267 Guns 34529 | 43 1662 74 2347 30 . 44 1476 1209 208 362 2401 2053 5230 2644 1684 132 240 2944 . 2469 175 7102 Cannons 6663 | . . . 204 . . . 501 46 . . . . 894 646 1162 . . . . 396 120 2694 Explosions 4545 | . . . . . . . . . 473 . 1075 . 116 . 1737 723 . . . . . 421 Melee 1984 | . . . 73 . . . 51 . . . 368 60 156 . . . 1249 . . . . 27 Ramming 346 | . . . 28 15 . 1 60 . . . 14 . 135 39 11 . . 20 . . . 23 Kinetic 33740 | 10 1584 74 1749 30 . 28 1331 797 123 362 1586 1518 5190 3290 2710 107 208 2876 . 2366 295 7506 Thermal 8243 | 33 78 . 802 . . 16 646 458 558 . 815 535 934 . 454 25 32 68 . 499 . 2290 Explosive 2189 | . . . . . . . . . . . 1075 . . . 847 . . . . . . 267 Electromagnetic 1565 | . . . . . . . . . . . . . 116 . 572 723 . . . . . 154 Impact 268 | . . . 73 . . . 51 . . . 144 . . . . . . . . . . . Slashing 1716 | . . . . . . . . . . . 224 60 156 . . . 1249 . . . . 27 Piercing . | . . . . . . . . . . . . . . . . . . . . . . . Highest Corruption 55 | . 2 2 . . . . . . 5 15 21 22 33 1 1 55 55 45 . 2 2 47 Average Corruption 15 | . 2 2 . . . . . . 4 14 18 21 25 1 1 45 43 36 . 1 2 9 Corruption Purged 25 | . . . . . . . . . . . . . . . . . 25 . . . . . Corruption Blocked . | . . . . . . . . . . . . . . . . . . . . . . . Effects 609 | . 21 1 . . . . . . 14 14 75 71 194 4 12 32 46 43 . 15 4 63 Message Errors 134 | . 5 . . . . . . . 7 1 16 17 38 2 1 5 11 7 . 5 . 19 Matter Fused 130 | . 3 . . . . . . . 3 3 17 18 45 2 3 6 11 6 . 3 . 10 Heat Flow Errors 61 | . 3 . . . . . . . 1 . 10 7 17 . 2 3 5 6 . 1 . 6 Energy Discharges 63 | . 4 1 . . . . . . 1 1 5 6 18 . 5 5 4 4 . 2 1 6 Parts Rejected 10 | . . . . . . . . . . 2 1 1 1 . . 1 1 2 . . . 1 Parts Fused 8 | . . . . . . . . . . . . 1 3 . . . . 1 . . 1 2 Data Loss (minor) 65 | . 3 . . . . . . . 1 . 8 10 17 . . 8 6 5 . 3 . 4 Data Loss (major) 21 | . . . . . . . . . . . 3 2 10 . . . 3 . . . 1 2 Misfires 21 | . 1 . . . . . . . . 1 . 2 6 . . 2 4 1 . . 1 3 Alerts 20 | . 2 . . . . . . . 1 1 3 2 6 . 1 2 . . . . . 2 Misdirections 9 | . . . . . . . . . . 5 . . 4 . . . . . . . . . Weapon Failures 67 | . . . . . . . . . . . 12 5 29 . . . 1 11 . 1 . 8 Overload Shots . | . . . . . . . . . . . . . . . . . . . . . . . Overflow Damage 636 | . . . 33 . . . . . 130 . 90 . 46 2 51 . 258 . . . . 26 Projectiles 14 | . . . . . . . . . . . . . . 2 3 . . . . . . 9 Explosions 195 | . . . . . . . . . 130 . . . . . 48 . . . . . . 17 Melee 427 | . . . 33 . . . . . . . 90 . 46 . . . 258 . . . . . Knockbacks 57 | . . . 1 . . . . . . . . . 1 12 15 . . . . 8 2 18 Impact 3 | . . . 1 . . . . . . . . . 1 . . . . . . . . 1 Kinetic 51 | . . . . . . . . . . . . . . 11 15 . . . . 7 2 16 Secondary 3 | . . . . . . . . . . . . . . 1 . . . . . 1 . 1 Self-Inflicted Damage 34 | . . . . . . . . . . . . . . . . . . . . . . 34 Shots 1 | . . . . . . . . . . . . . . . . . . . . . . 1 Rammed 29 | . . . 3 2 . 1 3 . . . 2 . 8 4 3 . . 2 . . . 1 Targets Rammed 34 | . . . 4 3 . 1 4 . . . 2 . 9 4 3 . . 2 . . . 2 Kicked . | . . . . . . . . . . . . . . . . . . . . . . . Crushed 5 | . . . 1 1 . . 1 . . . . . 1 . . . . . . . . 1 Highest Temperature 477 | 20 261 . 302 50 . 36 330 89 151 54 476 300 477 219 142 170 229 476 . 215 . 387 Average Temperature 91 | 20 67 . 99 26 . 21 91 32 46 27 117 118 85 54 55 54 81 156 . 51 . 85 Received Heat Transfer 6218 | . 312 . 468 . . . 675 90 23 . 186 596 1282 201 201 13 9 207 . 246 54 1655 Effects 27 | . . . 4 . . . 3 . . . 5 2 6 . . . . 4 . . . 3 Shutdowns 3 | . . . . . . . . . . . 1 . 1 . . . . 1 . . . . Energy Bleed 5 | . . . 2 . . . . . . . 1 . 1 . . . . 1 . . . . Interference 16 | . . . 2 . . . 3 . . . 2 2 4 . . . . . . . . 3 Short Circuit 1 | . . . . . . . . . . . 1 . . . . . . . . . . . Damage (minor) 2 | . . . . . . . . . . . . . . . . . . 2 . . . . Siege Activations 37 | . . . . . . . . . . . 6 2 1 . . . . 1 . 9 1 17 Total Turns 781 | . . . . . . . . . . . 85 50 18 . . . . 17 . 176 7 428 Longest Duration 62 | . . . . . . . . . . . 27 33 18 . . . . 17 . 35 7 62 Martial Activations . | . . . . . . . . . . . . . . . . . . . . . . . Shielding Activations . | . . . . . . . . . . . . . . . . . . . . . . . Robots Disrupted . | . . . . . . . . . . . . . . . . . . . . . . . Combat Hostiles . | . . . . . . . . . . . . . . . . . . . . . . . Robots Corrupted 4 | . . . . . . . . . . . . . 1 . . 3 . . . . . . Combat Hostiles 3 | . . . . . . . . . . . . . . . . 3 . . . . . . Parts Fried 7 | . . . . . . . . . . . . . 2 . 1 4 . . . . . . Impact Corruptions 4 | . . . 1 . . . . . . . 1 . 2 . . . . . . . . . Robots Melted 1 | . . . . . . . . . . . . . . . . . . . . . . 1 Combat Hostiles 1 | . . . . . . . . . . . . . . . . . . . . . . 1 Parts Melted 17 | . . . 5 . . . 1 1 . . 3 3 . . 1 . . . . . . 3 Heat Transferred 13709 | 75 175 . 2553 . . 37 1184 962 398 . 1665 1110 1295 . 535 37 37 36 . 570 . 3040 Parts Sabotaged . | . . . . . . . . . . . . . . . . . . . . . . . Parts Stolen . | . . . . . . . . . . . . . . . . . . . . . . . Parts Stripped . | . . . . . . . . . . . . . . . . . . . . . . . Power Chain Reactions 4 | . . . . . . . . . . . . . . . 4 . . . . . . . Alert | -11 -10 -10 -9 -9 -9 -8 -8 -8 -7 -7 -7 -7 -7 -6 -6 -6 -6 -6 -5 -5 -5 -4 ------- Run | Yrd Mat Min Mat Min Exi Min Mat Gar Fac Was Fac Gar Fac Fac Ext Cet Arc Hub Fac Gar Fac Fac Maximum Alert Level 5 | . . . 2 . . . . 3 2 . 2 3 4 3 5 3 2 1 . 3 2 3 Low Security (%) 26 | 100 100 100 35 100 . 100 100 16 . 100 24 . . . . . . 46 100 27 . 7 Level 1 22 | . . . 43 . . . . 32 96 . 49 13 16 . 35 . 37 53 . 19 20 8 Level 2 27 | . . . 20 . . . . 41 3 . 25 62 45 28 15 . 62 . . 34 79 36 Level 3 18 | . . . . . . . . 9 . . . 23 29 71 8 100 . . . 18 . 47 Level 4 4 | . . . . . . . . . . . . . 9 . 35 . . . . . . . Level 5 . | . . . . . . . . . . . . . . . 3 . . . . . . . High Security . | . . . . . . . . . . . . . . . . . . . . . . . Max Security . | . . . . . . . . . . . . . . . . . . . . . . . Peak Influence 1611 | 10 186 25 536 136 . . 161 760 411 77 444 889 1278 838 1611 938 518 291 132 1019 512 965 Initial 893 | . . 25 . 136 . . . 91 367 77 . 299 466 623 377 893 317 102 132 29 503 177 Average 445 | 4 83 4 257 40 . . 63 410 309 29 278 589 663 729 787 832 421 194 89 430 440 620 Influence Increases 13540 | 10 561 10 1226 45 . . 550 749 235 . 891 630 1651 620 2190 331 317 502 . 1080 122 1820 Destroy 0b10 Robot/C 7240 | . 280 . 720 40 . . 340 460 40 . 460 320 1020 380 1040 160 80 240 . 580 40 1040 Destroy 0b10 Robot/NC 730 | 10 75 10 85 5 . . 50 5 20 . 65 5 90 45 45 10 45 65 . . 10 90 Destroy Leader 1346 | . 90 . 188 . . . 106 10 20 . 124 30 250 72 134 . . 60 . 40 2 220 Allied During Kill 1260 | . . . . . . . . 30 . . . . . . 837 115 125 30 . 98 . 25 Successful Hack 216 | . 33 . 45 . . . 5 14 39 . 2 . 18 13 7 . . . . . 28 12 Select Force Hacks 150 | . 60 . 60 . . . 30 . . . . . . . . . . . . . . . Disable Machine 585 | . . . 15 . . . 15 15 60 . 30 . 90 30 45 15 60 45 . 60 30 75 Anti-Garrison Action 800 | . . . . . . . . 200 . . 150 250 . . . . . . . 200 . . Destroy Structure 688 | . 8 . 8 . . . 4 15 56 . 30 10 18 5 67 16 7 62 . 102 12 268 Partial Spotted 15 | . . . . . . . . . . . . . . . . . . . . . . 15 Lose Combat Pursuer 510 | . 15 . 105 . . . . . . . 30 15 165 75 15 15 . . . . . 75 Influence Decreases 12587 | 10 494 77 875 396 . . 409 190 713 222 463 169 1267 1122 1365 1133 819 524 228 163 718 1230 Entered New Map 4544 | . . 42 . 215 . . . 50 333 145 . 129 423 650 394 703 477 190 138 13 456 186 Time Decay 6153 | 10 484 35 525 181 . . 369 . 380 67 443 . 714 422 601 310 342 254 90 . 262 664 Lost Part 780 | . 10 . 50 . . . 40 . . . 20 40 130 50 60 20 . . . 30 . 330 Lost Ally 660 | . . . . . . . . 140 . 10 . . . . 160 100 . 80 . 120 . 50 Purge Threat 450 | . . . 300 . . . . . . . . . . . 150 . . . . . . . Squads Dispatched 75 | . 5 . 4 . . . 4 . 2 . 10 . 18 3 10 . . 2 . . 1 16 Investigation 18 | . 3 . 4 . . . 2 . . . . . 4 . 3 . . 1 . . . 1 Extermination 16 | . . . . . . . . . 2 . 2 . 5 1 . . . . . . 1 5 Reinforcement 25 | . 2 . . . . . 1 . . . 3 . 5 1 5 . . 1 . . . 7 Assault 12 | . . . . . . . . . . . 2 . 4 1 2 . . . . . . 3 Garrison 4 | . . . . . . . 1 . . . 3 . . . . . . . . . . . Intercept . | . . . . . . . . . . . . . . . . . . . . . . . Searches Triggered . | . . . . . . . . . . . . . . . . . . . . . . . Construction Impeded 9 | . . . . . . . . . . . . . 1 1 3 . . 1 . . . 3 Haulers Reinforced 7 | . . . . . . . . . . . 2 . 4 . . . . . . . . 1 Active Scanning Responses . | . . . . . . . . . . . . . . . . . . . . . . . Cargo Convoy Interrupts . | . . . . . . . . . . . . . . . . . . . . . . . Stealth | -11 -10 -10 -9 -9 -9 -8 -8 -8 -7 -7 -7 -7 -7 -6 -6 -6 -6 -6 -5 -5 -5 -4 --------- Run | Yrd Mat Min Mat Min Exi Min Mat Gar Fac Was Fac Gar Fac Fac Ext Cet Arc Hub Fac Gar Fac Fac Distress Signals 33 | . 4 . 3 . . . 1 1 1 . 2 . 4 1 7 2 . . . . . 7 Communications Jammed . | . . . . . . . . . . . . . . . . . . . . . . . Distress Signals . | . . . . . . . . . . . . . . . . . . . . . . . Times Spotted 518 | . 34 . 58 3 . . 23 24 4 5 32 16 80 27 58 10 14 17 2 29 6 76 Peak Tracking Total 11 | . 4 . 6 2 . . 4 5 3 2 5 5 5 7 10 5 1 6 1 4 2 11 Tactical Retreats 21 | . 1 . 4 . . . . . . . 1 1 7 3 1 1 . . . . . 2 Traps | -11 -10 -10 -9 -9 -9 -8 -8 -8 -7 -7 -7 -7 -7 -6 -6 -6 -6 -6 -5 -5 -5 -4 ------- Run | Yrd Mat Min Mat Min Exi Min Mat Gar Fac Was Fac Gar Fac Fac Ext Cet Arc Hub Fac Gar Fac Fac Traps Triggered 28 | . 2 . 1 . . . 1 9 1 . . 3 2 2 4 . . 1 . 1 1 . Indirectly . | . . . . . . . . . . . . . . . . . . . . . . . Trap Hack Attempts 4 | . . . . . . . 4 . . . . . . . . . . . . . . . Triggered . | . . . . . . . . . . . . . . . . . . . . . . . Disarmed 6 | . . . 4 . . . 2 . . . . . . . . . . . . . . . Reprogrammed . | . . . . . . . . . . . . . . . . . . . . . . . Reused . | . . . . . . . . . . . . . . . . . . . . . . . Traps Extracted . | . . . . . . . . . . . . . . . . . . . . . . . Installed . | . . . . . . . . . . . . . . . . . . . . . . . Triggered . | . . . . . . . . . . . . . . . . . . . . . . . Machines | -11 -10 -10 -9 -9 -9 -8 -8 -8 -7 -7 -7 -7 -7 -6 -6 -6 -6 -6 -5 -5 -5 -4 ---------- Run | Yrd Mat Min Mat Min Exi Min Mat Gar Fac Was Fac Gar Fac Fac Ext Cet Arc Hub Fac Gar Fac Fac Machines Disabled 50 | . . . 1 . . . 1 4 4 . 3 3 6 2 5 1 4 3 . 6 2 5 Max in Single Turn 4 | . . . 1 . . . 1 1 4 . 1 1 2 1 1 1 1 1 . 1 1 1 Garrison Access 4 | . . . . . . . . . . . 1 . 2 . . . . . . . . 1 Garrison Relay 8 | . . . . . . . . 3 . . . 3 . . . . . . . 2 . . Network Hub 1 | . . . . . . . . . . . . . . . . . . 1 . . . . Energy Cycler 2 | . . . . . . . . . . . . . . . 2 . . . . . . . Machines Repaired . | . . . . . . . . . . . . . . . . . . . . . . . Machines Dismantled 5 | . . . . . . . . 1 . . . . . . 1 1 . 1 . . 1 . Machines Sabotaged . | . . . . . . . . . . . . . . . . . . . . . . . Overloaded Fab Kills . | . . . . . . . . . . . . . . . . . . . . . . . Hacking | -11 -10 -10 -9 -9 -9 -8 -8 -8 -7 -7 -7 -7 -7 -6 -6 -6 -6 -6 -5 -5 -5 -4 --------- Run | Yrd Mat Min Mat Min Exi Min Mat Gar Fac Was Fac Gar Fac Fac Ext Cet Arc Hub Fac Gar Fac Fac Machines Accessed 79 | . 9 . 16 . 1 . 6 3 5 . 2 1 13 6 7 . . 1 2 1 1 5 Terminals 53 | . 7 . 12 . . . 4 3 5 . . 1 5 4 7 . . 1 1 1 1 1 Fabricators 5 | . . . . . . . . . . . . . 3 1 . . . . . . . 1 Repair Stations 3 | . . . . . . . . . . . . . 2 . . . . . . . . 1 Recycling Units 6 | . 2 . 2 . . . 1 . . . . . . . . . . . . . . 1 Scanalyzers 5 | . . . 2 . . . . . . . 1 . 1 1 . . . . . . . . Garrison Access 6 | . . . . . . . 1 . . . 1 . 2 . . . . . 1 . . 1 Total Hacks 181 | . 18 . 52 . 1 . 13 5 13 . 6 1 26 12 12 . . 2 7 1 4 8 Successful 105 | . 12 . 28 . 1 . 10 1 10 . 4 . 14 7 5 . . 1 4 . 3 5 Failed 76 | . 6 . 24 . . . 3 4 3 . 2 1 12 5 7 . . 1 3 1 1 3 Catastrophic 16 | . . . 1 . . . 1 3 . . . 1 5 1 2 . . . . 1 1 . Database Lockouts . | . . . . . . . . . . . . . . . . . . . . . . . Manual 107 | . 18 . 32 . . . 10 . 10 . . . 11 8 6 1 . 2 2 . 3 4 Terminals 138 | . 15 . 47 . . . 11 5 13 . . 1 10 10 12 . . 2 5 1 4 2 Fabricators 9 | . . . . . . . . . . . . . 7 1 . . . . . . . 1 Repair Stations 8 | . . . . . . . . . . . . . 5 . . . . . . . . 3 Recycling Units 7 | . 3 . 2 . . . 1 . . . . . . . . . . . . . . 1 Scanalyzers 10 | . . . 3 . . . . . . . 4 . 2 1 . . . . . . . . Garrison Access 8 | . . . . . . . 1 . . . 2 . 2 . . . . . 2 . . 1 Terminal Hacks 30 | . 2 . 15 . 1 . 1 1 3 . . . . 2 4 . . . . . 1 . Record 1 | . . . . . 1 . . . . . . . . . . . . . . . . . Part Schematic 2 | . 1 . . . . . . . 1 . . . . . . . . . . . . . Robot Analysis 2 | . . . 1 . . . . . . . . . . . 1 . . . . . . . Prototype ID Bank 4 | . . . 2 . . . . . . . . . . . 1 . . . . . 1 . Open Door 2 | . . . . . . . . . . . . . . 1 1 . . . . . . . Emergency Access Points 1 | . . . . . . . . 1 . . . . . . . . . . . . . . Terminal Index 4 | . 1 . 2 . . . . . 1 . . . . . . . . . . . . . Recycling Unit Index 1 | . . . 1 . . . . . . . . . . . . . . . . . . . Alert Level 2 | . . . 2 . . . . . . . . . . . . . . . . . . . Unreport Threat 3 | . . . 2 . . . . . . . . . . . 1 . . . . . . . Locate Traps 2 | . . . 2 . . . . . . . . . . . . . . . . . . . Disarm Traps 1 | . . . 1 . . . . . . . . . . . . . . . . . . . Hauler Manifests 1 | . . . 1 . . . . . . . . . . . . . . . . . . . Zone Layout 4 | . . . 1 . . . 1 . 1 . . . . 1 . . . . . . . . Fabricator Hacks 6 | . . . . . . . . . . . . . 4 1 . . . . . . . 1 Network Status 2 | . . . . . . . . . . . . . 1 1 . . . . . . . . Load Schematic 3 | . . . . . . . . . . . . . 2 . . . . . . . . 1 Build 1 | . . . . . . . . . . . . . 1 . . . . . . . . . Repair Station Hacks 3 | . . . . . . . . . . . . . 3 . . . . . . . . . Scan Component 2 | . . . . . . . . . . . . . 2 . . . . . . . . . Repair 1 | . . . . . . . . . . . . . 1 . . . . . . . . . Recycling Unit Hacks 1 | . . . . . . . . . . . . . . . . . . . . . . 1 Retrieve Components 1 | . . . . . . . . . . . . . . . . . . . . . . 1 Scanalyzer 7 | . . . 2 . . . . . . . 2 . 2 1 . . . . . . . . Insert Component 1 | . . . . . . . . . . . 1 . . . . . . . . . . . Analyze 1 | . . . . . . . . . . . 1 . . . . . . . . . . . Retrieve Study 5 | . . . 2 . . . . . . . . . 2 1 . . . . . . . . Garrison Access Hacks 8 | . . . . . . . 1 . . . 2 . 2 . . . . . 2 . . 1 Unlock Access 3 | . . . . . . . 1 . . . 1 . . . . . . . 1 . . . Seal Access 3 | . . . . . . . . . . . . . 2 . . . . . . . . 1 Coupler Status 2 | . . . . . . . . . . . 1 . . . . . . . 1 . . . Unauthorized Hacks 50 | . 10 . 11 . . . 8 . 7 . . . 3 3 1 . . 1 2 . 2 2 Terminals 43 | . 8 . 9 . . . 7 . 7 . . . 3 3 1 . . 1 2 . 2 . Botnet 14 | . 1 . 2 . . . 2 . 2 . . . 3 1 1 . . . 1 . 1 . Operators 4 | . 1 . 2 . . . 1 . . . . . . . . . . . . . . . Skim 24 | . 6 . 5 . . . 4 . 5 . . . . 2 . . . . 1 . 1 . Sabotage 1 | . . . . . . . . . . . . . . . . . . 1 . . . . Fabricators . | . . . . . . . . . . . . . . . . . . . . . . . Repair Stations 2 | . . . . . . . . . . . . . . . . . . . . . . 2 Mechanics 1 | . . . . . . . . . . . . . . . . . . . . . . 1 Patch 1 | . . . . . . . . . . . . . . . . . . . . . . 1 Recycling Units 5 | . 2 . 2 . . . 1 . . . . . . . . . . . . . . . Tunnel 5 | . 2 . 2 . . . 1 . . . . . . . . . . . . . . . Scanalyzers . | . . . . . . . . . . . . . . . . . . . . . . . Garrison Access . | . . . . . . . . . . . . . . . . . . . . . . . Data Cores Recovered . | . . . . . . . . . . . . . . . . . . . . . . . Used . | . . . . . . . . . . . . . . . . . . . . . . . Hacking Detections 56 | . 5 . 14 . . . 5 3 4 . 1 1 9 4 5 1 . . 1 1 1 1 Full Trace Events 7 | . . . 1 . . . . 1 . . . . 4 . 1 . . . . . . . Feedback Events . | . . . . . . . . . . . . . . . . . . . . . . . Feedback Blocked . | . . . . . . . . . . . . . . . . . . . . . . . Robot Schematics Acquired . | . . . . . . . . . . . . . . . . . . . . . . . Robots Built . | . . . . . . . . . . . . . . . . . . . . . . . Authchips . | . . . . . . . . . . . . . . . . . . . . . . . Time . | . . . . . . . . . . . . . . . . . . . . . . . Total Robot Build Rating . | . . . . . . . . . . . . . . . . . . . . . . . Part Schematics Acquired 3 | . 1 . . . . . . . 1 . 1 . . . . . . . . . . . Parts Built 1 | . . . . . . . . . . . . . 1 . . . . . . . . . Authchips . | . . . . . . . . . . . . . . . . . . . . . . . Time 53 | . . . . . . . . . . . . . 53 . . . . . . . . . Total Part Build Rating 6 | . . . . . . . . . . . . . 6 . . . . . . . . . Part Studies Acquired 5 | . . . 2 . . . . . . . . . 2 1 . . . . . . . . Parts Repaired 1 | . . . . . . . . . . . . . 1 . . . . . . . . . Time 26 | . . . . . . . . . . . . . 26 . . . . . . . . . Parts Recycled . | . . . . . . . . . . . . . . . . . . . . . . . Recycled Matter . | . . . . . . . . . . . . . . . . . . . . . . . Retrieved Matter . | . . . . . . . . . . . . . . . . . . . . . . . Retrieved Components 10 | . . . . . . . . . . . . . . . . . . . . . . 10 Parts Scanalyzed 1 | . . . . . . . . . . . 1 . . . . . . . . . . . Part Schematics Acquired 1 | . . . . . . . . . . . 1 . . . . . . . . . . . Parts Damaged . | . . . . . . . . . . . . . . . . . . . . . . . Bothacking | -11 -10 -10 -9 -9 -9 -8 -8 -8 -7 -7 -7 -7 -7 -6 -6 -6 -6 -6 -5 -5 -5 -4 ------------ Run | Yrd Mat Min Mat Min Exi Min Mat Gar Fac Was Fac Gar Fac Fac Ext Cet Arc Hub Fac Gar Fac Fac Used RIF Installer 2 | . . . . . . . . 1 . . . . . . . . . . . 1 . . Alert ID Control 1 | . . . . . . . . . . . . . . . . . . . . 1 . . Robots Hacked 23 | . . . . . . . . . 1 6 4 . 3 . . . . 1 2 . 3 3 Non-combat 15 | . . . . . . . . . 1 . 4 . 3 . . . . 1 2 . 1 3 Combat 8 | . . . . . . . . . . 6 . . . . . . . . . . 2 . Robot Hacks Applied 25 | . . . . . . . . . 2 6 4 . 3 . . . . 1 3 . 3 3 no_distress 8 | . . . . . . . . . . . 2 . 3 . . . . 1 . . . 2 drop_inventory 1 | . . . . . . . . . . . 1 . . . . . . . . . . . block_reporting 2 | . . . . . . . . . 1 . . . . . . . . . 1 . . . ignore_targets 6 | . . . . . . . . . . 6 . . . . . . . . . . . . formatsys_low 6 | . . . . . . . . . 1 . 1 . . . . . . . 2 . 1 1 formatsys_high 2 | . . . . . . . . . . . . . . . . . . . . . 2 . Relay Couplers Released 33 | . . . . . . . . 10 . . 1 12 . . . . . . . 8 . 2 Machine Destruction 33 | . . . . . . . . 10 . . 1 12 . . . . . . . 8 . 2 Attached 6 | . . . . . . . . . 1 1 . 1 . . . . . . 1 1 1 . Fabnet Peak Effective % . | . . . . . . . . . . . . . . . . . . . . . . . Robots Rewired 22 | . . . . . . . . 5 . . . . . . 13 . . . . 4 . . Allies Hacked . | . . . . . . . . . . . . . . . . . . . . . . . Hacks Repelled . | . . . . . . . . . . . . . . . . . . . . . . . Allies | -11 -10 -10 -9 -9 -9 -8 -8 -8 -7 -7 -7 -7 -7 -6 -6 -6 -6 -6 -5 -5 -5 -4 -------- Run | Yrd Mat Min Mat Min Exi Min Mat Gar Fac Was Fac Gar Fac Fac Ext Cet Arc Hub Fac Gar Fac Fac Total Allies 43 | . . . . . . . . 7 1 . 1 . . . 17 5 . . 2 6 3 1 Largest Group 12 | . . . . . . . . 5 1 1 1 . . . 12 8 5 4 2 4 3 3 Highest-Rated Group 685 | . . . . . . . . 90 26 26 26 . . . 490 685 520 377 33 297 121 118 Highest-Rated Ally 159 | . . . . . . . . 25 26 26 26 . . . 159 143 143 96 23 148 49 49 Total Orders 18 | . . . . . . . . . . . . . . . . . . . 1 2 4 11 STAY 3 | . . . . . . . . . . . . . . . . . . . . 1 1 1 FOLLOW 3 | . . . . . . . . . . . . . . . . . . . . 1 1 1 AID 6 | . . . . . . . . . . . . . . . . . . . 1 . 2 3 EXPLORE 3 | . . . . . . . . . . . . . . . . . . . . . . 3 RETURN 3 | . . . . . . . . . . . . . . . . . . . . . . 3 Ally Attacks 389 | . . . . . . . . 18 . . . . . . 231 38 13 12 . 70 . 7 Total Damage 9621 | . . . . . . . . 433 . . . . . . 4810 1098 507 280 . 2366 . 127 Kills 60 | . . . . . . . . 4 . . . . . . 33 5 3 1 . 13 . 1 Allies Corrupted 6 | . . . . . . . . 2 . . . . . . . . . 4 . . . . Allies Melted . | . . . . . . . . . . . . . . . . . . . . . . . Intel | -11 -10 -10 -9 -9 -9 -8 -8 -8 -7 -7 -7 -7 -7 -6 -6 -6 -6 -6 -5 -5 -5 -4 ------- Run | Yrd Mat Min Mat Min Exi Min Mat Gar Fac Was Fac Gar Fac Fac Ext Cet Arc Hub Fac Gar Fac Fac Active Infowar (turns) 13057 | 3 1677 227 1585 541 320 178 852 825 874 112 713 2 1997 370 171 . . 197 187 24 566 1636 Sensors 5455 | . . . . . . . . . 874 112 713 2 1997 370 171 . . . 186 24 566 440 IFF 1395 | . . . . . . . . . . . . . . . . . . 197 2 . . 1196 Seismic 6208 | 3 1677 227 1585 541 320 178 852 825 . . . . . . . . . . . . . . Robot Analysis Total 2 | . . . 1 . . . . . . . . . . . 1 . . . . . . . Derelict Logs Recovered 3 | . . 1 . 2 . . . . . . . . . . . . . . . . . . Drone Launches 6 | . . . . . . . . . . . . . . . . . . . . . . 6 Drone Recoveries 5 | . . . . . . . . . . . . . . . . . . . . . . 5 Exploration | -11 -10 -10 -9 -9 -9 -8 -8 -8 -7 -7 -7 -7 -7 -6 -6 -6 -6 -6 -5 -5 -5 -4 ------------- Run | Yrd Mat Min Mat Min Exi Min Mat Gar Fac Was Fac Gar Fac Fac Ext Cet Arc Hub Fac Gar Fac Fac Turns Passed 24144 | 21 1677 227 2182 541 320 178 1221 1146 897 212 1224 1485 3265 1037 1926 699 763 557 187 1280 574 2525 Spaces Moved 10128 | 4 917 156 980 264 160 86 476 460 337 99 486 750 1430 429 833 247 193 152 89 557 268 755 Core 7 | . 1 . . . . . . . . . . . . . . . . . . . . 6 Treads 8694 | 4 63 . 650 264 160 86 476 460 337 99 486 750 1430 423 787 219 193 152 89 557 268 741 Legs . | . . . . . . . . . . . . . . . . . . . . . . . Wheels 1427 | . 853 156 330 . . . . . . . . . . 6 46 28 . . . . . 8 Hover . | . . . . . . . . . . . . . . . . . . . . . . . Flight . | . . . . . . . . . . . . . . . . . . . . . . . Fastest Speed 105 | 160 105 135 120 200 200 200 200 200 160 160 160 160 156 155 160 160 160 160 160 160 160 160 Average Speed 170 | 160 134 135 173 200 200 200 200 200 160 161 160 163 169 177 187 172 160 160 160 160 160 174 Slowest Speed 1950 | 160 450 135 200 200 200 200 200 200 200 200 160 213 213 245 235 265 160 160 160 160 160 1950 Overloaded Moves . | . . . . . . . . . . . . . . . . . . . . . . . Propulsion Burnouts . | . . . . . . . . . . . . . . . . . . . . . . . Robots Hopped . | . . . . . . . . . . . . . . . . . . . . . . . Potential Cave-ins . | . . . . . . . . . . . . . . . . . . . . . . . Cave-ins Triggered . | . . . . . . . . . . . . . . . . . . . . . . . Exploration Rate (%) 45 | 2 93 63 88 60 50 33 39 58 6 72 15 57 35 13 87 77 93 11 4 66 6 23 Regions Visited 22 Branch Regions 8 Pre-discovered Areas 12 | . 4 . 5 . 1 . 1 . 1 . . . . . . . . . . . . . Known Exits Taken 11 | . . 1 1 1 . 1 1 . . . 1 . 1 1 1 . . . 1 . 1 . Unknown Exits Taken 6 | 1 1 . . . 1 . . . . . . . . . . 1 1 1 . . . . Scrap Searched 3 | . . 1 . 1 . 1 . . . . . . . . . . . . . . . . Spaces Dug 35 | . . . 2 . . . 1 . 6 . 4 . 2 . . . . . . . . 20 Terrain Destroyed 381 | . 8 . 2 . . . 1 . 62 . 29 1 14 . 31 1 5 77 . 1 7 142 Melee 14 | . . . 2 . . . 1 . 6 . 4 . 1 . . . . . . . . . Projectile 213 | . . . . . . . . . . . 2 1 13 . 4 1 5 77 . 1 7 102 AOE 154 | . 8 . . . . . . . 56 . 23 . . . 27 . . . . . . 40 Terrain Rammed . | . . . . . . . . . . . . . . . . . . . . . . . Walls Destroyed . | . . . . . . . . . . . . . . . . . . . . . . . Machines Disabled . | . . . . . . . . . . . . . . . . . . . . . . . Actions | -11 -10 -10 -9 -9 -9 -8 -8 -8 -7 -7 -7 -7 -7 -6 -6 -6 -6 -6 -5 -5 -5 -4 --------- Run | Yrd Mat Min Mat Min Exi Min Mat Gar Fac Was Fac Gar Fac Fac Ext Cet Arc Hub Fac Gar Fac Fac Total 14780 | 15 1178 162 1241 270 161 89 641 621 670 138 775 907 1911 579 1033 490 611 320 129 862 383 1594 Wait 2371 | . 113 . 47 2 . . 28 61 294 2 115 47 191 49 13 173 389 58 26 203 53 507 Move 10109 | 3 916 155 979 263 159 85 476 459 337 98 486 749 1429 428 832 246 192 151 88 556 267 755 Hop . | . . . . . . . . . . . . . . . . . . . . . . . Pick Up 197 | . 27 2 29 . 1 . 18 5 2 3 11 11 26 7 6 8 . 5 1 8 6 21 Fast Attach 92 | 1 3 . 7 . . 1 5 . 1 2 4 4 12 3 6 9 6 9 . 4 5 10 Attach 107 | 2 1 . 9 . . . 4 . 5 2 4 9 16 4 4 2 . 4 2 1 7 31 Detach 37 | 2 3 . 1 . . . . . 3 3 1 4 4 . 3 3 . 1 . . 6 3 Swap 284 | . 13 . 22 . . . 18 12 11 5 31 12 37 10 18 13 1 11 6 15 11 38 Drop 226 | 4 12 . 36 . 1 1 23 11 3 5 11 12 25 6 7 17 1 11 1 6 8 25 Fire 1141 | 3 90 5 104 2 . 1 58 41 8 18 100 51 159 68 85 10 5 65 5 48 14 201 Melee 52 | . . . 3 . . . 3 8 6 . 10 1 3 . . . 17 . . . . 1 Ram . | . . . . . . . . . . . . . . . . . . . . . . . Kick . | . . . . . . . . . . . . . . . . . . . . . . . Crush 34 | . . . 4 3 . 1 4 . . . 2 . 9 4 3 . . 2 . . . 2 Escape Stasis 27 | . . . . . . . . 16 . . . 4 . . 7 . . . . . . . Rewire 65 | . . . . . . . . . . . . 3 . . 41 . . . . 21 . . Trap 4 | . . . . . . . 4 . . . . . . . . . . . . . . . Miscellaneous 34 | . . . . . . . . 8 . . . . . . 8 9 . 3 . . 6 . Route ------- -11/Scrapyard -10/Materials (discovered 6 exits: *Mat x3 / [*Min x2] / *Sub) -10/Mines (discovered 3 exits: *Mat x2 / Sub) -9/Materials (discovered 4 exits: *Mat x3 / *Min) -9/Mines (discovered 3 exits: *Mat x2 / *Exi) -9/Exiles -8/Mines -8/Materials (discovered 4 exits: Fac / *Sto x2 / Gar) -8/Garrison (discovered 2 exits: *Fac x2) -7/Factory (discovered 5 exits: *Fac x3 / Low x2) -7/Waste -7/Factory -7/Garrison (discovered 3 exits: *Fac x3) -7/Factory -6/Factory -6/Extension (discovered 2 exits: *Fac / *Cet) -6/Cetus (discovered 2 exits: *Fac / [*Arc]) -6/Archives (discovered 3 exits: *Fac / *Hub x2) -6/Hub_04(d) -5/Factory (discovered 2 exits: Upp / Gar) -5/Garrison (discovered 3 exits: *Fac x3) -5/Factory -4/Factory (discovered 1 exit: [*Arm]) History --------- Turn | Location | Event 16 | -11/Scrapyard | Discovered new exit (range 1) 22 | -11/Scrapyard | Entered Materials 41 | -10/Materials | Discovered new exit (range 16) 201 | -10/Materials | Discovered new exit (range 6) 310 | -10/Materials | Build established: Mutant 344 | -10/Materials | Discovered new exit (range 15) 1197 | -10/Materials | Learned Storage garrison access intel 1325 | -10/Materials | Learned 4 Subcaves zone layouts 1375 | -10/Materials | Learned location of Subcaves (-10) 1413 | -10/Materials | Learned location of 2 exits from Mines 1465 | -10/Materials | Learned 4 Subcaves zone layouts 1473 | -10/Materials | Discovered new exit (range 14) 1498 | -10/Materials | Learned Storage emergency access door positions 1542 | -10/Materials | Identified exit to Materials 1542 | -10/Materials | Identified exit to Subcaves 1596 | -10/Materials | Learned location of 2 exits from Mines 1699 | -10/Materials | Entered Mines 1884 | -10/Mines | A weapon hastily lodged in a ceiling crevice suddenly fell to the ground 1919 | -10/Mines | Learned Materials emergency access door positions 1926 | -10/Mines | Entered Materials 1926 | -9/Materials | Evolved 2 slots: Propulsion x1, Weapon x1 2191 | -9/Materials | Discovered new exit (range 3) 2232 | -9/Materials | Build established: Gunner 2372 | -9/Materials | Lost 4 parts (4w) 2516 | -9/Materials | Discovered new exit (range 15) 2851 | -9/Materials | Build established: Scavenger-Gunner 2862 | -9/Materials | Discovered new exit (range 15) 3325 | -9/Materials | Learned 2 Storage zone layouts 3369 | -9/Materials | Build established: Gunner 3403 | -9/Materials | Identified exit to Materials 3403 | -9/Materials | Identified exit to Mines 3428 | -9/Materials | Core integrity fell below 50% 3439 | -9/Materials | Learned 2 Materials zone layouts 3443 | -9/Materials | Learned location of Zion (-6) 3455 | -9/Materials | Learned location of 2 exits from Materials 3515 | -9/Materials | Learned Materials emergency access door positions 3561 | -9/Materials | Learned Storage non-interactive machine intel 4108 | -9/Materials | Entered Mines 4109 | -9/Mines | Identified exit to Exiles 4236 | -9/Mines | Discovered exit to Materials (range 14) 4420 | -9/Mines | YI-UF0 nonchalantly dropped a Grenade Launcher on the ground 4514 | -9/Mines | Learned Materials emergency access door positions 4639 | -9/Mines | Deemed a non-threat by the Exiles lab entrance 4649 | -9/Mines | Entered Exiles 4697 | -9/Exiles | Met 8R-AWN 4731 | -9/Exiles | Met EX-HEX 4815 | -9/Exiles | Met EX-DEC 4951 | -9/Exiles | Discovered new exit (range 10) 4969 | -9/Exiles | Entered Mines 5125 | -8/Mines | Discovered exit to Materials (range 9) 5147 | -8/Mines | Entered Materials 5147 | -8/Materials | Evolved 2 slots: Propulsion x1, Utility x1 5148 | -8/Materials | Identified exit to Storage 5149 | -8/Materials | Identified exit to Factory 5559 | -8/Materials | Lost 3 parts (1n1u1w) 6171 | -8/Materials | Build established: Scavenger-Gunner 6286 | -8/Materials | Garrison activated, responded to threat 6368 | -8/Materials | Identified exit to Garrison 6368 | -8/Materials | Entered Garrison 6388 | -8/Garrison | Triggered checkpoint 6410 | -8/Garrison | Installed Relay Interface Framework 6464 | -8/Garrison | Garrison Relay disabled 6689 | -8/Garrison | Rescued a captive Derelict 6690 | -8/Garrison | Rescued a captive Derelict 6780 | -8/Garrison | Triggered checkpoint 6782 | -8/Garrison | Triggered checkpoint 6932 | -8/Garrison | Triggered checkpoint 6976 | -8/Garrison | Garrison Relay disabled 7021 | -8/Garrison | Discovered exit to Factory (range 12) 7351 | -8/Garrison | Discovered exit to Factory (range 8) 7362 | -8/Garrison | Triggered checkpoint 7385 | -8/Garrison | Garrison Relay disabled 7514 | -8/Garrison | Entered Factory 7514 | -7/Factory | Evolved 2 slots: Propulsion x1, Utility x1 7522 | -7/Factory | Lost 5 allies 7731 | -7/Factory | Discovered new exit (range 15) 7753 | -7/Factory | Identified exit to Factory 7809 | -7/Factory | Build established: Scavenger-Skirmisher 8151 | -7/Factory | Identified exit to Lower Caves 8253 | -7/Factory | Learned location of Warlord (-5) 8401 | -7/Factory | Learned Hub_04(d) garrison access intel 8411 | -7/Factory | Manually triggered Chute Trap 8411 | -7/Factory | Sucked down chute 8411 | -7/Factory | Entered Waste 8426 | -7/Waste | EMP discharged 8426 | -7/Waste | System corruption reached 10% 8431 | -7/Waste | 1 allies followed down the chute 8436 | -7/Waste | Spotted C-40 Crusher 8463 | -7/Waste | Destroyed C-40 Crusher 8468 | -7/Waste | Spotted C-40 Crusher 8468 | -7/Waste | Spotted C-40 Crusher 8482 | -7/Waste | Found Damper Plating 8496 | -7/Waste | Spotted C-40 Crusher 8512 | -7/Waste | Spotted C-40 Crusher 8526 | -7/Waste | EMP discharged 8531 | -7/Waste | Spotted C-40 Crusher 8601 | -7/Waste | Discovered new exit (range 14) 8622 | -7/Waste | Identified exit to Factory 8623 | -7/Waste | Entered Factory 9191 | -7/Factory | Garrison activated, responded to threat 9847 | -7/Factory | Identified exit to Garrison 9847 | -7/Factory | Entered Garrison 10167 | -7/Garrison | Build established: Scavenger-Tank 10185 | -7/Garrison | Triggered checkpoint 10238 | -7/Garrison | Discovered new exit (range 11) 10252 | -7/Garrison | Identified exit to Factory 10437 | -7/Garrison | Triggered checkpoint 10482 | -7/Garrison | Discovered exit to Factory (range 10) 10610 | -7/Garrison | Triggered checkpoint 10707 | -7/Garrison | Discovered exit to Factory (range 10) 10727 | -7/Garrison | Triggered checkpoint 10786 | -7/Garrison | Garrison Relay disabled 10979 | -7/Garrison | Garrison Relay disabled 11140 | -7/Garrison | Triggered checkpoint 11210 | -7/Garrison | Lost 3 parts (1n1u1w) 11212 | -7/Garrison | Garrison Relay disabled 11332 | -7/Garrison | Entered Factory 11974 | -7/Factory | Lost 4 parts (3n1u) 12107 | -7/Factory | Fabricated Hvy. Treads (x1) 12132 | -7/Factory | First assault squad dispatched 12282 | -7/Factory | Build established: Scavenger-Mutant 12285 | -7/Factory | Repaired Lgt. Treads+ 12820 | -7/Factory | Build established: Scavenger-Skirmisher 13423 | -7/Factory | System corruption reached 30% 13783 | -7/Factory | Discovered exit to Factory (range 13) 14597 | -7/Factory | Entered another Factory area 14597 | -6/Factory | Evolved 2 slots: Propulsion x1, Utility x1 14947 | -6/Factory | First assault squad dispatched 15429 | -6/Factory | Build established: Scavenger-Gunner 15628 | -6/Factory | Discovered new exit (range 5) 15632 | -6/Factory | Identified exit to Extension 15634 | -6/Factory | Entered Extension 15711 | -6/Extension | Rescued A7 16073 | -6/Extension | Rescued a captive Derelict 16192 | -6/Extension | Build established: Scavenger-Tank 16437 | -6/Extension | Spotted B-75 Beast 16447 | -6/Extension | Allies destroyed B-75 Beast 16461 | -6/Extension | Spotted B-75 Beast 16472 | -6/Extension | Allies destroyed B-75 Beast 16513 | -6/Extension | Build established: Commander-Tank 16859 | -6/Extension | Disrupted transfer network 16998 | -6/Extension | Energy Cycler disabled 16998 | -6/Extension | Rescued a captive Derelict 16999 | -6/Extension | Rescued a captive Derelict 16999 | -6/Extension | Rescued a captive Derelict 17015 | -6/Extension | Rescued a captive Derelict 17071 | -6/Extension | Build established: Scavenger-Gunner 17081 | -6/Extension | Lost 4 allies 17384 | -6/Extension | First assault squad dispatched 17463 | -6/Extension | Lost 3 allies 17486 | -6/Extension | Destroyed 10 combat bots 17539 | -6/Extension | Discovered new exit (range 10) 17543 | -6/Extension | Discovered new exit (range 6) 17558 | -6/Extension | Identified exit to Cetus 17560 | -6/Extension | Entered Cetus 17560 | -6/Cetus | Accompanied by 5 allies (A7) 17565 | -6/Cetus | Acquired a Cetus Manufacturing Module code from A7 17602 | -6/Cetus | Spotted Cetus Guard 17602 | -6/Cetus | Spotted Cetus Guard 17606 | -6/Cetus | Spotted Cetus Guard 17609 | -6/Cetus | Allies destroyed Cetus Guard 17615 | -6/Cetus | Destroyed Cetus Guard 17615 | -6/Cetus | Spotted Cetus Guard 17617 | -6/Cetus | Destroyed Cetus Guard 17618 | -6/Cetus | Destroyed Cetus Guard 17658 | -6/Cetus | System corruption reached 10% 17679 | -6/Cetus | System corruption reached 30% 17857 | -6/Cetus | Escorted A7 to Cetus Mainframe 17858 | -6/Cetus | Build established: Scavenger-Tank 17877 | -6/Cetus | Started Cetus Manufacturing Module 17902 | -6/Cetus | Manufactured an Enhanced Grunt 17927 | -6/Cetus | Manufactured an Enhanced Grunt 17952 | -6/Cetus | Manufactured an Enhanced Grunt 17977 | -6/Cetus | Manufactured an Enhanced Grunt 18002 | -6/Cetus | Manufactured an Enhanced Grunt 18029 | -6/Cetus | Discovered new exit (range 16) 18058 | -6/Cetus | Spotted Cetus Guard 18058 | -6/Cetus | Spotted Cetus Guard 18062 | -6/Cetus | Spotted Cetus Guard 18066 | -6/Cetus | Allies destroyed Cetus Guard 18068 | -6/Cetus | Spotted Cetus Guard 18072 | -6/Cetus | Allies destroyed Cetus Guard 18083 | -6/Cetus | Destroyed Cetus Guard 18083 | -6/Cetus | Allies destroyed Cetus Guard 18096 | -6/Cetus | Discovered new exit (range 15) 18104 | -6/Cetus | Met Revision 17 18109 | -6/Cetus | Lost 3 allies 18259 | -6/Cetus | Entered Archives 18259 | -6/Archives | Accompanied by 5 allies (A7) 18264 | -6/Archives | Received a hacking code to weaken MAIN.C 18327 | -6/Archives | Discovered new exit (range 14) 18395 | -6/Archives | Discovered new exit (range 13) 18439 | -6/Archives | Discovered new exit (range 15) 18561 | -6/Archives | Build established: Scavenger-Mutant 19022 | -6/Archives | Entered Hub_04(d) 19022 | -6/Hub_04(d) | Accompanied by 4 allies 19023 | -6/Hub_04(d) | Loaded intel: 2 garrison access locations 19064 | -6/Hub_04(d) | Discovered new exit (range 14) 19086 | -6/Hub_04(d) | Network Hub disabled 19091 | -6/Hub_04(d) | Spotted Lightning 19091 | -6/Hub_04(d) | Spotted Lightning 19110 | -6/Hub_04(d) | Spotted Lightning 19148 | -6/Hub_04(d) | Destroyed Lightning 19152 | -6/Hub_04(d) | Lost 4 allies 19163 | -6/Hub_04(d) | Destroyed Lightning 19184 | -6/Hub_04(d) | Spotted Lightning 19186 | -6/Hub_04(d) | Spotted Lightning 19187 | -6/Hub_04(d) | Spotted Lightning 19190 | -6/Hub_04(d) | Destroyed Lightning 19202 | -6/Hub_04(d) | Destroyed Lightning 19253 | -6/Hub_04(d) | Destroyed Lightning 19276 | -6/Hub_04(d) | Destroyed Lightning 19307 | -6/Hub_04(d) | Found Prototype Device 19307 | -6/Hub_04(d) | Identified Exp. Phase Shifter 19344 | -6/Hub_04(d) | Found Prototype Device 19344 | -6/Hub_04(d) | Identified Exp. EM Shield 19347 | -6/Hub_04(d) | Found Prototype Processor 19347 | -6/Hub_04(d) | Identified Exp. Targeting Computer 19419 | -6/Hub_04(d) | Build established: Scavenger-Tank 19579 | -6/Hub_04(d) | Entered Factory 19579 | -5/Factory | Evolved 2 slots: Utility x2 19580 | -5/Factory | Identified exit to Upper Caves 19759 | -5/Factory | Identified exit to Garrison 19766 | -5/Factory | Entered Garrison 19766 | -5/Garrison | Accompanied by 2 allies 19787 | -5/Garrison | Spotted B-75 Beast 19823 | -5/Garrison | Destroyed B-75 Beast 19930 | -5/Garrison | Rewired B-86 Titan 19943 | -5/Garrison | Rewired B-90 Cyclops 20026 | -5/Garrison | Triggered checkpoint 20246 | -5/Garrison | Spotted B-75 Beast 20275 | -5/Garrison | Destroyed B-75 Beast 20323 | -5/Garrison | Triggered checkpoint 20366 | -5/Garrison | Triggered checkpoint 20368 | -5/Garrison | Triggered checkpoint 20442 | -5/Garrison | Discovered new exit (range 15) 20452 | -5/Garrison | Triggered checkpoint 20467 | -5/Garrison | Identified exit to Factory 20521 | -5/Garrison | Garrison Relay disabled 20612 | -5/Garrison | Triggered checkpoint 20690 | -5/Garrison | Triggered checkpoint 20775 | -5/Garrison | Garrison Relay disabled 20799 | -5/Garrison | Found embedded Infiltrators 20822 | -5/Garrison | Discovered exit to Factory (range 10) 20977 | -5/Garrison | Discovered exit to Factory (range 15) 21016 | -5/Garrison | Expanded RIF knowledge: Alert ID Control 21034 | -5/Garrison | Spotted Executioner 21046 | -5/Garrison | Entered Factory 21560 | -5/Factory | Discovered new exit (range 8) 21571 | -5/Factory | Identified exit to Factory 21620 | -5/Factory | Entered another Factory area 21620 | -4/Factory | Accompanied by 3 allies 21620 | -4/Factory | Evolved 2 slots: Power x1, Utility x1 22620 | -4/Factory | First assault squad dispatched 22655 | -4/Factory | Watched by a mysterious "MATRIX" hacker 23090 | -4/Factory | System corruption reached 10% 23094 | -4/Factory | Discovered new exit (range 53) 23789 | -4/Factory | Found Prototype Launcher 23789 | -4/Factory | Identified Tesla Bomb Launcher 23950 | -4/Factory | Lost 13 parts (2p5n3u3w) 24081 | -4/Factory | Core integrity fell below 50% 24100 | -4/Factory | System corruption reached 30% 24129 | -4/Factory | Core integrity fell below 20% 24145 | -4/Factory | Destroyed by G-67 Veteran with Field Laser Last Messages --------------- 24126_ Emergency Access malfunctions. 24127_ Adv. Drone Bay destroyed. 24128_ Graphene Brace destroyed. 24128_ System corrupted by crushing effect (+5). 24128_ Knocked back. 24131_ U-05 Engineer repairs door. 24132_ Knocked back. 24133_ U-05 Engineer lays Concrete. 24136_ B-60 Warrior destroyed. 24137_ U-05 Engineer lays Concrete. 24139_ Acquired 88 matter. 24140_ U-05 Engineer lays Concrete. 24140_ P-70 Sage resets G-67 Veteran, system corruption cleaned. 24141_ U-05 Engineer lays Concrete. 24143_ System corrupted: Heat flow error (+120). 24143_ U-05 Engineer lays Concrete. 24144_ Tesla Bomb Launcher destroyed. 24144_ U-05 Engineer lays Concrete. [Achievement: Punisher] Map ----- +----------------------------------------------------+ | "" """ #????????????????????????????????????????? | | "" """ #????????????????????????????????????????? | | "" "" #????????????????????????????????????????? | | "" "" #????????????????????????????????????????? | | #????????????????????????????????????????? | | #????????????????????????????????????????? | | +????????????????????????????????????????? | | #????????????????????????????????????????? | | ! #????????????????????????????????????????? | | ! #??????????????????#?????????????????????? | | ##+##########????????????? ???????????????????? | | ??? ??????????????????? | | H? ???????????????????? | | ?? ????????????????????? | | ##+##############+## ? ?????????????????????? | | #??# # ? ??????????????????????? | | #??# ! !## #??????????????????????? | | #??# ## #??????????????????????? | | #??# ## #??????????????????????? | | * #??# ## #??????????????????????? | | #??# ## #??????????????????????? | | #### ## #??????????????????????? | | + + + !% #??????????????????????? | | "################+#########????????????????? | | "#??????# !* ! #????????????????? | | ##??????# ! *@ "" #????????????????? | | #???????# %u* " #????????????????? | | #######???????# [% "" #????????????????? | | ?###??????????# p!** " " #????????????????? | | ??????????????# """ * %!g%=%[ #????????????????? | | ??????????????# """" !%%%! #????????????????? | | ??????????????##########/########????????????????? | | ????????????????????? "%=*][!# ?????????????????? | | ???????????????????? [| # ""????????????????? | | ??????????????????? """ " """???????????????? | | ?????????????????? !! """|=# """"??????????????? | | ????????????????? != """!%# """???????????????? | | ????????????????# !#?"""???????????????? | | ????????????????# """ """ #??""???????????????? | | ???????????????## """ ??? #???????????????????? | | ??????????????? # """ ??? +???????????????????? | | ??????????????#?# ???? ??? #???????????????????? | | ????????????????# ????????? #???????????????????? | | ???????????????????????????? ????????????????????? | | ?????????????????????????????????????????????????? | | ?????????????????????????????????????????????????? | | ?????????????????????????????????????????????????? | | ?????????????????????????????????????????????????? | | ?????????????????????????????????????????????????? | | ?????????????????????????????????????????????????? | +----------------------------------------------------+ Best States ------------- Heat Dissipation 88 Energy Generation 37 Energy Capacity 800 Matter Stores 300 Matter Capacity 300 Sight Range 16 Robot Scan Range 15 Terrain Scan Density 10 EM Shielding 2 Armor Coverage 1600 Resistance: KI 30 Resistance: EM 90 Weapon Cycling 15 Evasion (%) 40 Targeting Accuracy 12 Recoil Reduction 6 Offensive Hacking 10 Relay Coupler Types 2 Relay Coupler Value 60 Item Schematics ----------------- Huge Storage Unit | -10/Materials | Hacked Arm. Treads | -7/Factory | Hacked Hvy. Treads | -7/Factory | Scanalyzed Robot Schematics ------------------ None Fabricated ------------ Hvy. Treads | x1 | -7/Factory Repaired ---------- Lgt. Treads | 13% | -7/Factory Studied --------- Lgt. Treads | -9/Materials | Hacked Hvy. Assault Rifle | -9/Materials | Hacked Gauss Rifle | -7/Factory | Hacked Remote Datajack | -7/Factory | Hacked Wheel | -6/Factory | Hacked Alien Tech Used ----------------- None Achievements -------------- Better Safe Than Exploded Punisher Challenges ------------ None Game ------ Seed BoltDeuteriumWartreads Manual? 0 Play Time 03:49:06 Cumulative 183.3 hours Start 2026.09.18 @ 21:52:57 End 2026.09.19 @ 15:00:02 Sessions 5 Manual Loads 0 Difficulty Rogue Special Mode None Game No. 132 Rogue 132 Adventurer 0 Explorer 0 Win Type - Total 5 Types 4/0/1/0/0/0/0/0/0/0 Lore% 60 Gallery% 52 Achievement% 46 Wizard Run 0 Options --------- Layout 2 ASCII 0 Keyboard 1 Movement Numpad Keybinds 0 Fullscreen 2 Font 32/SmallcapsGlow Map View 50x44 Zoom Use 0% Tactical HUD 1 Map Filters NONE Filters NONE Steam 1 RUN: 68785ec6-b82f-4398-93eb-373ed74f215d